[Event "Titled Tuesday Blitz February 07 Early 2023"]
[White "Ansh M Shah"]
[Black "Zemlyanskii, Ivan"]
[WhiteFideId "25033379"]
[BlackFideId "24249971"]
[WhiteElo "2171"]
[BlackElo "2300"]
[Result "0-1"]
[Round "01"]
[TimeControl "180+2"]
[Date "2023.02.07"]
[WhiteClock "0:00:04"]
[BlackClock "0:00:43"]

1. d4 {[%clk 0:02:54]}  Nc6 {[%clk 0:02:59]} 2. c4 {[%clk 0:02:55]}  e5 {[%clk 0:02:59]} 3. d5 {[%clk 0:02:50]}  Nce7 {[%clk 0:02:59]} 4. Nf3 {[%clk 0:02:50]}  Ng6 {[%clk 0:02:59]} 5. e4 {[%clk 0:02:49]}  Bc5 {[%clk 0:02:59]} 6. Nc3 {[%clk 0:02:45]}  Nf6 {[%clk 0:02:59]} 7. Bd3 {[%clk 0:02:44]}  O-O {[%clk 0:02:54]} 8. h4 {[%clk 0:02:42]}  Ng4 {[%clk 0:02:43]} 9. O-O {[%clk 0:02:30]}  Nxh4 {[%clk 0:02:37]} 10. a3 {[%clk 0:02:11]}  d6 {[%clk 0:02:19]} 11. b4 {[%clk 0:02:09]}  Nxf3+ {[%clk 0:02:13]} 12. gxf3 {[%clk 0:01:50]}  Bd4 {[%clk 0:01:56]} 13. fxg4 {[%clk 0:01:49]}  Bxc3 {[%clk 0:01:56]} 14. Ra2 {[%clk 0:01:49]}  Bd4 {[%clk 0:01:54]} 15. Be3 {[%clk 0:01:48]}  Bxe3 {[%clk 0:01:52]} 16. fxe3 {[%clk 0:01:49]}  Qg5 {[%clk 0:01:53]} 17. Qf3 {[%clk 0:01:47]}  Qxg4+ {[%clk 0:01:37]} 18. Qxg4 {[%clk 0:01:47]}  Bxg4 {[%clk 0:01:35]} 19. Rc2 {[%clk 0:01:37]}  Bd7 {[%clk 0:01:21]} 20. c5 {[%clk 0:01:36]}  Rac8 {[%clk 0:01:16]} 21. Rfc1 {[%clk 0:01:30]}  Rfd8 {[%clk 0:01:08]} 22. b5 {[%clk 0:00:58]}  dxc5 {[%clk 0:00:44]} 23. Rxc5 {[%clk 0:00:58]}  Kf8 {[%clk 0:00:44]} 24. Rxc7 {[%clk 0:00:31]}  Ke7 {[%clk 0:00:40]} 25. a4 {[%clk 0:00:08]}  Kd6 {[%clk 0:00:40]} 26. Rxc8 {[%clk 0:00:08]}  Rxc8 {[%clk 0:00:40]} 27. Rxc8 {[%clk 0:00:06]}  Bxc8 {[%clk 0:00:41]} 28. Kf2 {[%clk 0:00:03]}  b6 {[%clk 0:00:41]} 29. Kg3 {[%clk 0:00:04]}  f6 {[%clk 0:00:41]} 30. Kf2 {[%clk 0:00:03]}  g5 {[%clk 0:00:41]} 31. Ke2 {[%clk 0:00:03]}  h5 {[%clk 0:00:42]} 32. Kf2 {[%clk 0:00:04]}  h4 {[%clk 0:00:43]} 33. Kg2 {[%clk 0:00:04]}  Bg4 {[%clk 0:00:43]} 34. Kh2 {[%clk 0:00:04]}  Bd1 {[%clk 0:00:43]} 35. a5 {[%clk 0:00:04]}  bxa5 {[%clk 0:00:43]} 0-1


[Site "https://www.chess.com"]

[Event "Titled Tuesday Blitz February 07 Early 2023"]
[White "Beerdsen, Thomas"]
[Black "Bowden, Karl"]
[WhiteFideId "1030108"]
[BlackFideId "400548"]
[WhiteElo "2507"]
[BlackElo "2348"]
[Result "1-0"]
[Round "01"]
[TimeControl "180+2"]
[Date "2023.02.07"]
[WhiteClock "0:01:25"]
[BlackClock "0:00:35"]

1. e4 {[%clk 0:02:59]}  e5 {[%clk 0:03:00]} 2. Nf3 {[%clk 0:02:57]}  d5 {[%clk 0:03:00]} 3. exd5 {[%clk 0:02:55]}  e4 {[%clk 0:03:00]} 4. Qe2 {[%clk 0:02:56]}  Nf6 {[%clk 0:03:01]} 5. d3 {[%clk 0:02:55]}  Bb4+ {[%clk 0:02:59]} 6. Nbd2 {[%clk 0:02:53]}  Bxd2+ {[%clk 0:02:52]} 7. Nxd2 {[%clk 0:02:47]}  O-O {[%clk 0:02:51]} 8. Nxe4 {[%clk 0:02:45]}  Nxd5 {[%clk 0:02:49]} 9. Bg5 {[%clk 0:02:38]}  f6 {[%clk 0:02:47]} 10. Bh4 {[%clk 0:02:33]}  Re8 {[%clk 0:02:46]} 11. O-O-O {[%clk 0:02:27]}  g5 {[%clk 0:02:41]} 12. c4 {[%clk 0:02:24]}  gxh4 {[%clk 0:02:29]} 13. cxd5 {[%clk 0:02:21]}  Re5 {[%clk 0:02:08]} 14. d4 {[%clk 0:02:14]}  Rxd5 {[%clk 0:02:05]} 15. Qf3 {[%clk 0:02:07]}  Rf5 {[%clk 0:02:00]} 16. Qe3 {[%clk 0:01:55]}  Be6 {[%clk 0:01:47]} 17. g4 {[%clk 0:01:55]}  Ra5 {[%clk 0:01:36]} 18. g5 {[%clk 0:01:55]}  fxg5 {[%clk 0:01:23]} 19. Rg1 {[%clk 0:01:39]}  h6 {[%clk 0:01:22]} 20. Nxg5 {[%clk 0:01:37]}  Rxg5 {[%clk 0:01:20]} 21. Qxe6+ {[%clk 0:01:37]}  Kg7 {[%clk 0:01:17]} 22. Bc4 {[%clk 0:01:29]}  Nc6 {[%clk 0:01:09]} 23. f4 {[%clk 0:01:25]}  Nxd4 {[%clk 0:00:36]} 24. Qe5+ {[%clk 0:01:24]}  Qf6 {[%clk 0:00:35]} 25. Qxf6+ {[%clk 0:01:24]}  Kxf6 {[%clk 0:00:35]} 26. fxg5+ {[%clk 0:01:25]} 1-0


[Site "https://www.chess.com"]

[Event "Titled Tuesday Blitz February 07 Early 2023"]
[White "Ilinca Ilinca, Felix Antonio"]
[Black "Sattarov, Bobir"]
[WhiteFideId "54764998"]
[BlackFideId "14203081"]
[WhiteElo "2266"]
[BlackElo "2366"]
[Result "0-1"]
[Round "01"]
[TimeControl "180+2"]
[Date "2023.02.07"]
[WhiteClock "0:01:35"]
[BlackClock "0:02:03"]

1. c4 {[%clk 0:02:57]}  Nf6 {[%clk 0:02:59]} 2. Nc3 {[%clk 0:02:57]}  e6 {[%clk 0:02:59]} 3. e4 {[%clk 0:02:56]}  c5 {[%clk 0:02:57]} 4. e5 {[%clk 0:02:54]}  Ng8 {[%clk 0:02:57]} 5. Nf3 {[%clk 0:02:55]}  Nc6 {[%clk 0:02:57]} 6. d4 {[%clk 0:02:52]}  cxd4 {[%clk 0:02:58]} 7. Nxd4 {[%clk 0:02:53]}  Nxe5 {[%clk 0:02:56]} 8. Ndb5 {[%clk 0:02:53]}  d6 {[%clk 0:02:55]} 9. Ne4 {[%clk 0:02:48]}  Nf6 {[%clk 0:02:39]} 10. Nexd6+ {[%clk 0:02:45]}  Bxd6 {[%clk 0:02:40]} 11. Nxd6+ {[%clk 0:02:45]}  Ke7 {[%clk 0:02:40]} 12. Nxc8+ {[%clk 0:02:29]}  Rxc8 {[%clk 0:02:41]} 13. Qb3 {[%clk 0:02:17]}  Qc7 {[%clk 0:02:28]} 14. Be3 {[%clk 0:01:55]}  Rhd8 {[%clk 0:02:17]} 15. Rc1 {[%clk 0:01:40]}  Ne4 {[%clk 0:02:05]} 16. Bxa7 {[%clk 0:01:35]}  Qa5+ {[%clk 0:02:03]} 0-1


[Site "https://www.chess.com"]

[Event "Titled Tuesday Blitz February 07 Early 2023"]
[White "Shipov, Sergei"]
[Black "Melaugh, Shane"]
[WhiteFideId "4113624"]
[BlackFideId "2509580"]
[WhiteElo "2541"]
[BlackElo "2115"]
[Result "1-0"]
[Round "01"]
[TimeControl "180+2"]
[Date "2023.02.07"]
[WhiteClock "0:01:31"]
[BlackClock "0:00:49"]

1. d4 {[%clk 0:02:53]}  e6 {[%clk 0:02:59]} 2. c4 {[%clk 0:02:51]}  f5 {[%clk 0:02:58]} 3. g3 {[%clk 0:02:51]}  Nf6 {[%clk 0:02:58]} 4. Bg2 {[%clk 0:02:51]}  Be7 {[%clk 0:02:55]} 5. Nf3 {[%clk 0:02:50]}  b6 {[%clk 0:02:48]} 6. Ne5 {[%clk 0:02:36]}  c6 {[%clk 0:02:47]} 7. Nc3 {[%clk 0:02:33]}  Bb7 {[%clk 0:02:46]} 8. O-O {[%clk 0:02:31]}  d6 {[%clk 0:02:45]} 9. Nd3 {[%clk 0:02:31]}  O-O {[%clk 0:02:44]} 10. Nf4 {[%clk 0:02:27]}  Qc8 {[%clk 0:02:37]} 11. d5 {[%clk 0:02:24]}  e5 {[%clk 0:02:14]} 12. Ne6 {[%clk 0:02:24]}  Re8 {[%clk 0:02:09]} 13. Bg5 {[%clk 0:02:22]}  Nbd7 {[%clk 0:02:07]} 14. Rc1 {[%clk 0:02:11]}  Nf8 {[%clk 0:02:07]} 15. Nxf8 {[%clk 0:02:06]}  Rxf8 {[%clk 0:02:08]} 16. dxc6 {[%clk 0:02:03]}  Bxc6 {[%clk 0:02:07]} 17. Nd5 {[%clk 0:02:03]}  Bxd5 {[%clk 0:01:53]} 18. cxd5 {[%clk 0:02:03]}  Qa6 {[%clk 0:01:53]} 19. a3 {[%clk 0:01:55]}  Rac8 {[%clk 0:01:51]} 20. Rc6 {[%clk 0:01:54]}  h6 {[%clk 0:01:47]} 21. Bxf6 {[%clk 0:01:46]}  Rxf6 {[%clk 0:01:46]} 22. Qc2 {[%clk 0:01:46]}  Rff8 {[%clk 0:01:29]} 23. Bh3 {[%clk 0:01:38]}  g6 {[%clk 0:01:16]} 24. e4 {[%clk 0:01:38]}  Rxc6 {[%clk 0:01:14]} 25. dxc6 {[%clk 0:01:38]}  Qc8 {[%clk 0:01:01]} 26. c7 {[%clk 0:01:34]}  Qe6 {[%clk 0:00:54]} 27. Rc1 {[%clk 0:01:33]}  Qc8 {[%clk 0:00:50]} 28. exf5 {[%clk 0:01:31]}  gxf5 {[%clk 0:00:49]} 29. Bxf5 {[%clk 0:01:31]} 1-0


[Site "https://www.chess.com"]

[Event "Titled Tuesday Blitz February 07 Early 2023"]
[White "Mazurkiewicz, Michal"]
[Black "Zahid, Sanatan"]
[WhiteFideId "1124943"]
[BlackFideId "10201963"]
[WhiteElo "2145"]
[BlackElo "1930"]
[Result "0-1"]
[Round "01"]
[TimeControl "180+2"]
[Date "2023.02.07"]
[WhiteClock "0:00:01"]
[BlackClock "0:00:54"]

1. e4 {[%clk 0:02:58]}  e6 {[%clk 0:02:57]} 2. d3 {[%clk 0:02:58]}  d5 {[%clk 0:02:55]} 3. Nd2 {[%clk 0:02:59]}  Nf6 {[%clk 0:02:53]} 4. Ngf3 {[%clk 0:02:59]}  c5 {[%clk 0:02:52]} 5. g3 {[%clk 0:02:59]}  Nc6 {[%clk 0:02:53]} 6. Bg2 {[%clk 0:02:59]}  Be7 {[%clk 0:02:53]} 7. O-O {[%clk 0:02:59]}  O-O {[%clk 0:02:51]} 8. e5 {[%clk 0:02:59]}  Nd7 {[%clk 0:02:51]} 9. Re1 {[%clk 0:03:00]}  b5 {[%clk 0:02:51]} 10. h4 {[%clk 0:02:59]}  b4 {[%clk 0:02:50]} 11. Nf1 {[%clk 0:02:59]}  Ba6 {[%clk 0:02:50]} 12. Bf4 {[%clk 0:02:59]}  Rc8 {[%clk 0:02:50]} 13. Ne3 {[%clk 0:02:58]}  Nd4 {[%clk 0:02:50]} 14. Nxd4 {[%clk 0:02:55]}  cxd4 {[%clk 0:02:51]} 15. Ng4 {[%clk 0:02:53]}  Qb6 {[%clk 0:02:51]} 16. h5 {[%clk 0:02:48]}  Rc7 {[%clk 0:02:51]} 17. Qd2 {[%clk 0:02:26]}  Rfc8 {[%clk 0:02:46]} 18. Rac1 {[%clk 0:02:26]}  b3 {[%clk 0:02:40]} 19. axb3 {[%clk 0:01:37]}  Bb4 {[%clk 0:02:33]} 20. Qe2 {[%clk 0:00:51]}  Bxe1 {[%clk 0:02:31]} 21. Rxe1 {[%clk 0:00:52]}  Rxc2 {[%clk 0:02:30]} 22. Qf3 {[%clk 0:00:52]}  Qxb3 {[%clk 0:02:25]} 23. Bf1 {[%clk 0:00:49]}  Nc5 {[%clk 0:02:02]} 24. Nh6+ {[%clk 0:00:41]}  Kf8 {[%clk 0:01:42]} 25. Nxf7 {[%clk 0:00:20]}  Kxf7 {[%clk 0:01:34]} 26. Bh6+ {[%clk 0:00:20]}  Ke7 {[%clk 0:01:27]} 27. Bxg7 {[%clk 0:00:21]}  Bxd3 {[%clk 0:01:20]} 28. Qf6+ {[%clk 0:00:10]}  Kd7 {[%clk 0:01:20]} 29. Bf8 {[%clk 0:00:10]}  Bxf1 {[%clk 0:01:09]} 30. Qe7+ {[%clk 0:00:09]}  Kc6 {[%clk 0:01:08]} 31. Rxf1 {[%clk 0:00:07]}  Qb7 {[%clk 0:01:00]} 32. Qd6+ {[%clk 0:00:05]}  Kb5 {[%clk 0:01:00]} 33. Ra1 {[%clk 0:00:04]}  a5 {[%clk 0:00:57]} 34. Bh6 {[%clk 0:00:01]}  Qc7 {[%clk 0:00:54]} 0-1


[Site "https://www.chess.com"]

[Event "Titled Tuesday Blitz February 07 Early 2023"]
[White "Devaev, Alexander"]
[Black "Harshavardhan G B"]
[WhiteFideId "4169395"]
[BlackFideId "25059009"]
[WhiteElo "2325"]
[BlackElo "2408"]
[Result "1-0"]
[Round "01"]
[TimeControl "180+2"]
[Date "2023.02.07"]
[WhiteClock "0:00:12"]
[BlackClock "0:00:07"]

1. d4 {[%clk 0:03:00]}  Nf6 {[%clk 0:02:59]} 2. c4 {[%clk 0:02:59]}  g6 {[%clk 0:02:55]} 3. Nc3 {[%clk 0:02:59]}  Bg7 {[%clk 0:02:52]} 4. e4 {[%clk 0:02:59]}  d6 {[%clk 0:02:52]} 5. Nf3 {[%clk 0:02:59]}  O-O {[%clk 0:02:51]} 6. h3 {[%clk 0:03:00]}  e5 {[%clk 0:02:50]} 7. d5 {[%clk 0:03:00]}  Nh5 {[%clk 0:02:49]} 8. Nh2 {[%clk 0:03:00]}  Na6 {[%clk 0:02:46]} 9. g3 {[%clk 0:02:59]}  Qe8 {[%clk 0:02:45]} 10. Be2 {[%clk 0:02:59]}  Nf6 {[%clk 0:02:42]} 11. Ng4 {[%clk 0:03:00]}  Nd7 {[%clk 0:02:39]} 12. Nh6+ {[%clk 0:02:54]}  Kh8 {[%clk 0:02:39]} 13. h4 {[%clk 0:02:54]}  Ndc5 {[%clk 0:02:18]} 14. h5 {[%clk 0:02:47]}  f5 {[%clk 0:02:17]} 15. hxg6 {[%clk 0:02:42]}  Qxg6 {[%clk 0:02:11]} 16. exf5 {[%clk 0:02:30]}  Bxf5 {[%clk 0:02:09]} 17. Nxf5 {[%clk 0:02:11]}  Qxf5 {[%clk 0:02:07]} 18. Be3 {[%clk 0:02:11]}  Nb4 {[%clk 0:02:06]} 19. Rh5 {[%clk 0:01:26]}  Qg6 {[%clk 0:00:58]} 20. Rg5 {[%clk 0:01:24]}  Qf7 {[%clk 0:00:54]} 21. Rg4 {[%clk 0:00:51]}  e4 {[%clk 0:00:43]} 22. Nxe4 {[%clk 0:00:48]}  Nxe4 {[%clk 0:00:36]} 23. Rxe4 {[%clk 0:00:49]}  Qf5 {[%clk 0:00:25]} 24. Qb1 {[%clk 0:00:23]}  Kg8 {[%clk 0:00:15]} 25. Bg4 {[%clk 0:00:20]}  Qg6 {[%clk 0:00:13]} 26. Be6+ {[%clk 0:00:20]}  Kh8 {[%clk 0:00:13]} 27. Rh4 {[%clk 0:00:18]}  Nc2+ {[%clk 0:00:12]} 28. Kd2 {[%clk 0:00:15]}  Bf6 {[%clk 0:00:08]} 29. Qxc2 {[%clk 0:00:14]}  Qxc2+ {[%clk 0:00:07]} 30. Kxc2 {[%clk 0:00:14]}  Bxh4 {[%clk 0:00:08]} 31. gxh4 {[%clk 0:00:15]}  Kg7 {[%clk 0:00:08]} 32. h5 {[%clk 0:00:14]}  Kf6 {[%clk 0:00:08]} 33. f4 {[%clk 0:00:13]}  c5 {[%clk 0:00:08]} 34. Rg1 {[%clk 0:00:12]}  Rae8 {[%clk 0:00:03]} 35. h6 {[%clk 0:00:12]}  Ke7 {[%clk 0:00:02]} 36. Rg7+ {[%clk 0:00:12]}  Kf6 {[%clk 0:00:02]} 37. Rxb7 {[%clk 0:00:11]}  Kg6 {[%clk 0:00:02]} 38. f5+ {[%clk 0:00:10]}  Rxf5 {[%clk 0:00:02]} 39. Bxf5+ {[%clk 0:00:10]}  Kxf5 {[%clk 0:00:03]} 40. Bd2 {[%clk 0:00:10]}  Kg6 {[%clk 0:00:03]} 41. Rg7+ {[%clk 0:00:10]}  Kf6 {[%clk 0:00:04]} 42. Rxh7 {[%clk 0:00:11]}  Re4 {[%clk 0:00:04]} 43. b3 {[%clk 0:00:10]}  Kg6 {[%clk 0:00:05]} 44. Rxa7 {[%clk 0:00:11]}  Rg4 {[%clk 0:00:05]} 45. h7 {[%clk 0:00:10]}  Rh4 {[%clk 0:00:05]} 46. Bc3 {[%clk 0:00:10]}  Rh2+ {[%clk 0:00:04]} 47. Kd1 {[%clk 0:00:11]}  Rh1+ {[%clk 0:00:05]} 48. Ke2 {[%clk 0:00:12]}  Rh2+ {[%clk 0:00:06]} 49. Kf1 {[%clk 0:00:12]}  Rh3 {[%clk 0:00:06]} 50. h8=Q {[%clk 0:00:12]}  Rxh8 {[%clk 0:00:07]} 51. Bxh8 {[%clk 0:00:12]} 1-0


[Site "https://www.chess.com"]

[Event "Titled Tuesday Blitz February 07 Early 2023"]
[White "Mastrovasilis, Athanasios"]
[Black "Forgacs, Attila Jr."]
[WhiteFideId "4201990"]
[BlackFideId "773654"]
[WhiteElo "2497"]
[BlackElo "2264"]
[Result "0-1"]
[Round "01"]
[TimeControl "180+2"]
[Date "2023.02.07"]
[WhiteClock "0:00:06"]
[BlackClock "0:00:07"]

1. d4 {[%clk 0:02:58]}  Nf6 {[%clk 0:02:59]} 2. c4 {[%clk 0:02:57]}  g6 {[%clk 0:02:58]} 3. Nc3 {[%clk 0:02:58]}  d5 {[%clk 0:02:58]} 4. cxd5 {[%clk 0:02:59]}  Nxd5 {[%clk 0:02:59]} 5. Nf3 {[%clk 0:02:59]}  Bg7 {[%clk 0:02:59]} 6. e4 {[%clk 0:02:58]}  Nxc3 {[%clk 0:02:59]} 7. bxc3 {[%clk 0:02:59]}  c5 {[%clk 0:02:59]} 8. Be3 {[%clk 0:03:00]}  Qa5 {[%clk 0:02:51]} 9. Qd2 {[%clk 0:02:59]}  O-O {[%clk 0:02:46]} 10. Rc1 {[%clk 0:02:55]}  Nc6 {[%clk 0:02:44]} 11. d5 {[%clk 0:02:53]}  Ne5 {[%clk 0:02:39]} 12. Nxe5 {[%clk 0:02:52]}  Bxe5 {[%clk 0:02:40]} 13. f4 {[%clk 0:02:52]}  Bg7 {[%clk 0:02:39]} 14. e5 {[%clk 0:02:48]}  Rd8 {[%clk 0:02:36]} 15. c4 {[%clk 0:02:47]}  Qa3 {[%clk 0:02:29]} 16. Rc3 {[%clk 0:02:40]}  Qb4 {[%clk 0:02:28]} 17. Be2 {[%clk 0:02:39]}  Qb1+ {[%clk 0:02:24]} 18. Rc1 {[%clk 0:02:37]}  Qe4 {[%clk 0:02:24]} 19. Bf3 {[%clk 0:02:33]}  Qf5 {[%clk 0:02:22]} 20. g4 {[%clk 0:02:32]}  Qd7 {[%clk 0:02:22]} 21. Bxc5 {[%clk 0:01:49]}  g5 {[%clk 0:01:50]} 22. O-O {[%clk 0:01:39]}  b6 {[%clk 0:01:13]} 23. Bd4 {[%clk 0:01:38]}  Bb7 {[%clk 0:01:06]} 24. f5 {[%clk 0:01:29]}  h6 {[%clk 0:01:04]} 25. f6 {[%clk 0:01:22]}  exf6 {[%clk 0:01:03]} 26. exf6 {[%clk 0:01:23]}  Bf8 {[%clk 0:01:03]} 27. Rfe1 {[%clk 0:01:11]}  b5 {[%clk 0:00:50]} 28. Re5 {[%clk 0:00:43]}  Re8 {[%clk 0:00:16]} 29. Rxg5+ {[%clk 0:00:30]}  hxg5 {[%clk 0:00:17]} 30. Qxg5+ {[%clk 0:00:30]}  Kh8 {[%clk 0:00:18]} 31. Qh4+ {[%clk 0:00:20]}  Kg8 {[%clk 0:00:18]} 32. Qg5+ {[%clk 0:00:13]}  Kh8 {[%clk 0:00:18]} 33. Qh5+ {[%clk 0:00:14]}  Kg8 {[%clk 0:00:18]} 34. g5 {[%clk 0:00:12]}  Qf5 {[%clk 0:00:16]} 35. Rf1 {[%clk 0:00:07]}  Qg6 {[%clk 0:00:15]} 36. Qxg6+ {[%clk 0:00:07]}  fxg6 {[%clk 0:00:16]} 37. c5 {[%clk 0:00:08]}  Rad8 {[%clk 0:00:10]} 38. d6 {[%clk 0:00:06]}  Bxf3 {[%clk 0:00:10]} 39. Rxf3 {[%clk 0:00:07]}  Kf7 {[%clk 0:00:10]} 40. Ra3 {[%clk 0:00:05]}  Rd7 {[%clk 0:00:10]} 41. Ra6 {[%clk 0:00:04]}  Re4 {[%clk 0:00:08]} 42. Bf2 {[%clk 0:00:04]}  Re5 {[%clk 0:00:08]} 43. h4 {[%clk 0:00:02]}  Re4 {[%clk 0:00:07]} 44. Kg2 {[%clk 0:00:02]}  Rg4+ {[%clk 0:00:08]} 45. Kf3 {[%clk 0:00:03]}  Rc4 {[%clk 0:00:09]} 46. Bg3 {[%clk 0:00:03]}  Rc3+ {[%clk 0:00:09]} 47. Ke4 {[%clk 0:00:03]}  Rxc5 {[%clk 0:00:09]} 48. Be5 {[%clk 0:00:03]}  Rc4+ {[%clk 0:00:08]} 49. Kd5 {[%clk 0:00:03]}  Rxh4 {[%clk 0:00:08]} 50. Bd4 {[%clk 0:00:04]}  Rxd4+ {[%clk 0:00:07]} 51. Kxd4 {[%clk 0:00:04]}  Rxd6+ {[%clk 0:00:07]} 52. Kc5 {[%clk 0:00:05]}  Rxa6+ {[%clk 0:00:07]} 53. Kxb5 {[%clk 0:00:06]}  Rxa2 {[%clk 0:00:07]} 0-1


[Site "https://www.chess.com"]

[Event "Titled Tuesday Blitz February 07 Early 2023"]
[White "Lianes Garcia, Marcos"]
[Black "Goncalves, Davi Sulzbacher"]
[WhiteFideId "32060777"]
[BlackFideId "2154510"]
[WhiteElo "2411"]
[BlackElo "2282"]
[Result "1-0"]
[Round "01"]
[TimeControl "180+2"]
[Date "2023.02.07"]
[WhiteClock "0:01:33"]
[BlackClock "0:00:09"]

1. e4 {[%clk 0:02:56]}  c5 {[%clk 0:02:58]} 2. g3 {[%clk 0:02:56]}  Nc6 {[%clk 0:02:59]} 3. Bg2 {[%clk 0:02:56]}  g6 {[%clk 0:02:59]} 4. Ne2 {[%clk 0:02:56]}  Bg7 {[%clk 0:02:59]} 5. O-O {[%clk 0:02:56]}  d6 {[%clk 0:02:57]} 6. c3 {[%clk 0:02:56]}  Nf6 {[%clk 0:02:56]} 7. d4 {[%clk 0:02:56]}  O-O {[%clk 0:02:55]} 8. h3 {[%clk 0:02:56]}  Bd7 {[%clk 0:02:48]} 9. Be3 {[%clk 0:02:56]}  Qb6 {[%clk 0:02:12]} 10. Qd2 {[%clk 0:02:54]}  Rfd8 {[%clk 0:02:10]} 11. f4 {[%clk 0:02:42]}  cxd4 {[%clk 0:01:55]} 12. cxd4 {[%clk 0:02:41]}  d5 {[%clk 0:01:50]} 13. exd5 {[%clk 0:02:38]}  Nb4 {[%clk 0:01:45]} 14. Nbc3 {[%clk 0:02:38]}  Bf5 {[%clk 0:01:38]} 15. g4 {[%clk 0:02:37]}  Bd3 {[%clk 0:01:31]} 16. Na4 {[%clk 0:02:30]}  Qb5 {[%clk 0:01:27]} 17. Nec3 {[%clk 0:02:29]}  Qe8 {[%clk 0:00:59]} 18. Rfd1 {[%clk 0:02:26]}  Bc2 {[%clk 0:00:56]} 19. Nc5 {[%clk 0:02:18]}  Bxd1 {[%clk 0:00:49]} 20. Rxd1 {[%clk 0:02:17]}  Nbxd5 {[%clk 0:00:41]} 21. Nxb7 {[%clk 0:02:14]}  Nxe3 {[%clk 0:00:37]} 22. Qxe3 {[%clk 0:02:14]}  Rdc8 {[%clk 0:00:35]} 23. Nc5 {[%clk 0:02:04]}  Rab8 {[%clk 0:00:35]} 24. Nb3 {[%clk 0:02:05]}  a5 {[%clk 0:00:35]} 25. Rd2 {[%clk 0:02:02]}  a4 {[%clk 0:00:35]} 26. Nc5 {[%clk 0:02:03]}  e6 {[%clk 0:00:32]} 27. N5xa4 {[%clk 0:02:02]}  Nd5 {[%clk 0:00:27]} 28. Bxd5 {[%clk 0:02:01]}  exd5 {[%clk 0:00:26]} 29. Qxe8+ {[%clk 0:02:02]}  Rxe8 {[%clk 0:00:26]} 30. Kf2 {[%clk 0:02:02]}  Rb4 {[%clk 0:00:25]} 31. Kg2 {[%clk 0:01:50]}  Rxd4 {[%clk 0:00:20]} 32. Rxd4 {[%clk 0:01:50]}  Bxd4 {[%clk 0:00:21]} 33. Nxd5 {[%clk 0:01:50]}  Bxb2 {[%clk 0:00:18]} 34. Kf3 {[%clk 0:01:50]}  Bd4 {[%clk 0:00:17]} 35. Nac3 {[%clk 0:01:47]}  Kf8 {[%clk 0:00:16]} 36. a4 {[%clk 0:01:45]}  Rc8 {[%clk 0:00:14]} 37. Nb5 {[%clk 0:01:42]}  Rc4 {[%clk 0:00:13]} 38. a5 {[%clk 0:01:35]}  Rc5 {[%clk 0:00:12]} 39. Ndc7 {[%clk 0:01:33]}  Bc3 {[%clk 0:00:11]} 40. a6 {[%clk 0:01:33]}  Rc6 {[%clk 0:00:09]} 41. a7 {[%clk 0:01:33]} 1-0


[Site "https://www.chess.com"]